[Event "*** Titled Tuesday Blitz"]
[Site "Chess.com"]
[Date "2021.02.02"]
[Round "2"]
[White "pavelalexandru07"]
[Black "horripile"]
[Result "0-1"]
[WhiteElo "2340"]
[BlackElo "2700"]
[TimeControl "180+1"]
[EndTime "10:18:37 PST"]
[Termination "horripile won by resignation"]

1. e4 {[%clk 0:02:53.8]} 1... c5 {[%clk 0:02:57.2]} 2. Nf3 {[%clk 0:02:52]} 2...
Nc6 {[%clk 0:02:57.2]} 3. d4 {[%clk 0:02:49.9]} 3... cxd4 {[%clk 0:02:58.1]} 4.
Nxd4 {[%clk 0:02:48.4]} 4... e6 {[%clk 0:02:57.4]} 5. Nc3 {[%clk 0:02:38.2]}
5... Qc7 {[%clk 0:02:55.8]} 6. Be2 {[%clk 0:02:37.1]} 6... a6 {[%clk 0:02:54.1]}
7. O-O {[%clk 0:02:30.4]} 7... Nf6 {[%clk 0:02:52.8]} 8. Be3 {[%clk 0:02:26.4]}
8... Bb4 {[%clk 0:02:52.5]} 9. Nxc6 {[%clk 0:01:02.9]} 9... bxc6 {[%clk
0:02:14.1]} 10. Bd3 {[%clk 0:00:41.6]} 10... d5 {[%clk 0:02:07.7]} 11. exd5
{[%clk 0:00:35.7]} 11... cxd5 {[%clk 0:02:08.6]} 12. Ne2 {[%clk 0:00:36.2]}
12... O-O {[%clk 0:01:56.5]} 13. c3 {[%clk 0:00:34.7]} 13... Bd6 {[%clk
0:01:55.1]} 14. Ng3 {[%clk 0:00:34.8]} 14... Bb7 {[%clk 0:01:51.8]} 15. Re1
{[%clk 0:00:30]} 15... Bf4 {[%clk 0:01:43.3]} 16. Qd2 {[%clk 0:00:22.3]} 16...
Bxe3 {[%clk 0:01:41.7]} 17. Qxe3 {[%clk 0:00:22.5]} 17... a5 {[%clk 0:01:41.9]}
18. f3 {[%clk 0:00:16.1]} 18... Rab8 {[%clk 0:01:39]} 19. Rab1 {[%clk
0:00:13.9]} 19... Rfc8 {[%clk 0:01:36.6]} 20. Ne2 {[%clk 0:00:13.8]} 20... Nd7
{[%clk 0:01:27.6]} 21. Nd4 {[%clk 0:00:13.6]} 21... Nc5 {[%clk 0:01:27.2]} 22.
Bc2 {[%clk 0:00:13.8]} 22... Ba6 {[%clk 0:01:25.2]} 23. Rec1 {[%clk 0:00:12.8]}
23... Qb6 {[%clk 0:01:22]} 24. Kh1 {[%clk 0:00:04.5]} 24... g6 {[%clk
0:01:21.3]} 25. Ne2 {[%clk 0:00:03.6]} 25... Nd7 {[%clk 0:01:20]} 26. Qxb6
{[%clk 0:00:03.3]} 26... Nxb6 {[%clk 0:01:20.9]} 27. Nf4 {[%clk 0:00:03.4]}
27... Nc4 {[%clk 0:01:18.5]} 28. b3 {[%clk 0:00:02.9]} 28... Na3 {[%clk
0:01:15.3]} 29. Rb2 {[%clk 0:00:02.6]} 29... Rxc3 {[%clk 0:01:15.4]} 30. Ne2
{[%clk 0:00:03.2]} 0-1

[Event "*** Titled Tuesday Blitz"]
[Site "Chess.com"]
[Date "2021.02.02"]
[Round "2"]
[White "GoltsevDmitry2000"]
[Black "MelihKaanCan"]
[Result "1-0"]
[WhiteElo "2637"]
[BlackElo "2333"]
[TimeControl "180+1"]
[EndTime "10:18:40 PST"]
[Termination "GoltsevDmitry2000 won on time"]

1. e4 {[%clk 0:02:59.1]} 1... e5 {[%clk 0:02:59]} 2. Nf3 {[%clk 0:02:58.7]} 2...
Nc6 {[%clk 0:02:58.5]} 3. Bb5 {[%clk 0:02:58.7]} 3... a6 {[%clk 0:02:57.4]} 4.
Ba4 {[%clk 0:02:58.7]} 4... Nf6 {[%clk 0:02:56.9]} 5. O-O {[%clk 0:02:58.7]}
5... Be7 {[%clk 0:02:54.1]} 6. Re1 {[%clk 0:02:58.5]} 6... b5 {[%clk 0:02:54.4]}
7. Bb3 {[%clk 0:02:58.6]} 7... O-O {[%clk 0:02:54.9]} 8. c3 {[%clk 0:02:58.5]}
8... d5 {[%clk 0:02:48.9]} 9. exd5 {[%clk 0:02:57.5]} 9... Nxd5 {[%clk
0:02:49.8]} 10. Nxe5 {[%clk 0:02:56.9]} 10... Nxe5 {[%clk 0:02:50.7]} 11. Rxe5
{[%clk 0:02:57.8]} 11... c6 {[%clk 0:02:50.4]} 12. d4 {[%clk 0:02:57.6]} 12...
Bd6 {[%clk 0:02:49.5]} 13. Re1 {[%clk 0:02:56.7]} 13... Qh4 {[%clk 0:02:49.7]}
14. g3 {[%clk 0:02:55.2]} 14... Qh3 {[%clk 0:02:50.1]} 15. Nd2 {[%clk
0:02:53.5]} 15... Bg4 {[%clk 0:02:40.2]} 16. Nf3 {[%clk 0:02:20.8]} 16... Rae8
{[%clk 0:02:31.4]} 17. Rxe8 {[%clk 0:02:11.6]} 17... Rxe8 {[%clk 0:02:32.3]} 18.
Ng5 {[%clk 0:02:03.1]} 18... Qh5 {[%clk 0:00:49.4]} 19. f3 {[%clk 0:02:01.3]}
19... Bh3 {[%clk 0:00:47.8]} 20. Bc2 {[%clk 0:01:55.2]} 20... h6 {[%clk
0:00:40]} 21. Ne4 {[%clk 0:01:53.9]} 21... Bc7 {[%clk 0:00:32.7]} 22. Bd2 {[%clk
0:01:50.5]} 22... f5 {[%clk 0:00:26.2]} 23. Nf2 {[%clk 0:01:50.3]} 23... f4
{[%clk 0:00:25.7]} 24. g4 {[%clk 0:01:47.9]} 24... Qh4 {[%clk 0:00:25.5]} 25.
Be4 {[%clk 0:01:45.2]} 25... Ne3 {[%clk 0:00:24.7]} 26. Qb3+ {[%clk 0:01:40.9]}
26... Kh8 {[%clk 0:00:24]} 27. Qf7 {[%clk 0:01:38.9]} 27... Rc8 {[%clk
0:00:10.2]} 28. Qg6 {[%clk 0:01:35.7]} 28... Kg8 {[%clk 0:00:08.4]} 29. Re1
{[%clk 0:01:30]} 29... Kf8 {[%clk 0:00:07.6]} 30. Bxc6 {[%clk 0:01:27.1]} 30...
Qe7 {[%clk 0:00:03.1]} 31. Be4 {[%clk 0:01:20.6]} 1-0

[Event "*** Titled Tuesday Blitz"]
[Site "Chess.com"]
[Date "2021.02.02"]
[Round "2"]
[White "northridgehawk"]
[Black "harvsp123"]
[Result "0-1"]
[WhiteElo "2315"]
[BlackElo "2569"]
[TimeControl "180+1"]
[EndTime "10:18:43 PST"]
[Termination "harvsp123 won by resignation"]

1. e4 {[%clk 0:03:00.9]} 1... e5 {[%clk 0:02:59.3]} 2. Bc4 {[%clk 0:02:57.7]}
2... Nf6 {[%clk 0:02:55.3]} 3. Nc3 {[%clk 0:02:56.9]} 3... Bc5 {[%clk
0:02:53.8]} 4. d3 {[%clk 0:02:56.7]} 4... O-O {[%clk 0:02:50.8]} 5. f4 {[%clk
0:02:56.8]} 5... exf4 {[%clk 0:02:43.6]} 6. Bxf4 {[%clk 0:02:56.3]} 6... c6
{[%clk 0:02:43.3]} 7. Qf3 {[%clk 0:02:55.6]} 7... d5 {[%clk 0:02:41.8]} 8. exd5
{[%clk 0:02:55.2]} 8... Re8+ {[%clk 0:02:42.5]} 9. Nge2 {[%clk 0:02:54.6]} 9...
Bg4 {[%clk 0:02:40.6]} 10. Qg3 {[%clk 0:02:51.3]} 10... cxd5 {[%clk 0:02:36.7]}
11. Bb3 {[%clk 0:02:42.8]} 11... Nc6 {[%clk 0:02:34]} 12. Kd2 {[%clk 0:02:18.6]}
12... d4 {[%clk 0:02:24.9]} 13. Ne4 {[%clk 0:02:14.2]} 13... Rxe4 {[%clk
0:02:24.3]} 14. Rae1 {[%clk 0:02:05.2]} 14... Bb4+ {[%clk 0:02:20.3]} 15. c3
{[%clk 0:02:04]} 15... dxc3+ {[%clk 0:02:20.3]} 16. bxc3 {[%clk 0:02:04.9]}
16... Nd4 {[%clk 0:02:15.4]} 17. Nxd4 {[%clk 0:00:56.5]} 17... Qxd4 {[%clk
0:02:06.6]} 18. cxb4 {[%clk 0:00:53.4]} 18... Qb2+ {[%clk 0:02:05.7]} 19. Bc2
{[%clk 0:00:46]} 19... Rc8 {[%clk 0:02:00.2]} 20. Bc7 {[%clk 0:00:22.9]} 20...
Qxb4+ {[%clk 0:01:36.9]} 21. Kc1 {[%clk 0:00:20.4]} 21... Rxe1+ {[%clk
0:01:31.5]} 22. Rxe1 {[%clk 0:00:20.7]} 22... Rxc7 {[%clk 0:01:21.7]} 23. h3
{[%clk 0:00:20.4]} 23... Qc3 {[%clk 0:01:15.4]} 24. Qf2 {[%clk 0:00:18.9]} 24...
Be6 {[%clk 0:01:08.4]} 25. Kd1 {[%clk 0:00:15.8]} 25... Qa1+ {[%clk 0:01:06.9]}
26. Kd2 {[%clk 0:00:15.1]} 26... Rxc2+ {[%clk 0:01:06]} 27. Ke3 {[%clk
0:00:13.9]} 27... Qe5+ {[%clk 0:01:05.6]} 28. Kf3 {[%clk 0:00:10.8]} 28... Bd5+
{[%clk 0:01:04.7]} 29. Re4 {[%clk 0:00:03.1]} 29... Rxf2+ {[%clk 0:01:03.8]} 30.
Kxf2 {[%clk 0:00:02.5]} 30... Nxe4+ {[%clk 0:01:04.7]} 0-1

[Event "*** Titled Tuesday Blitz"]
[Site "Chess.com"]
[Date "2021.02.02"]
[Round "2"]
[White "andy_rekt"]
[Black "jerry_77"]
[Result "0-1"]
[WhiteElo "2242"]
[BlackElo "2459"]
[TimeControl "180+1"]
[EndTime "10:18:43 PST"]
[Termination "jerry_77 won by resignation"]

1. d4 {[%clk 0:03:00.9]} 1... Nf6 {[%clk 0:02:42.3]} 2. c4 {[%clk 0:02:59.3]}
2... e6 {[%clk 0:02:41.4]} 3. Nc3 {[%clk 0:02:59]} 3... d5 {[%clk 0:02:42.3]} 4.
Nf3 {[%clk 0:02:58.2]} 4... Bb4 {[%clk 0:02:38]} 5. Bg5 {[%clk 0:02:53.5]} 5...
O-O {[%clk 0:02:37.6]} 6. e3 {[%clk 0:02:50.8]} 6... Nbd7 {[%clk 0:02:37.3]} 7.
cxd5 {[%clk 0:02:48.1]} 7... exd5 {[%clk 0:02:37.1]} 8. Bd3 {[%clk 0:02:48.6]}
8... c6 {[%clk 0:02:37.2]} 9. O-O {[%clk 0:02:46.2]} 9... h6 {[%clk 0:02:37.6]}
10. Bh4 {[%clk 0:02:45.9]} 10... Re8 {[%clk 0:02:37.6]} 11. Qc2 {[%clk
0:02:45.4]} 11... Qa5 {[%clk 0:02:31.3]} 12. a3 {[%clk 0:02:26.3]} 12... Bxc3
{[%clk 0:02:31.3]} 13. bxc3 {[%clk 0:02:27.2]} 13... Ne4 {[%clk 0:02:31.4]} 14.
c4 {[%clk 0:02:24.5]} 14... g5 {[%clk 0:02:26.2]} 15. Bg3 {[%clk 0:02:23.3]}
15... Ndf6 {[%clk 0:02:25.5]} 16. cxd5 {[%clk 0:02:16.6]} 16... cxd5 {[%clk
0:02:25.2]} 17. Bc7 {[%clk 0:02:01]} 17... Qc3 {[%clk 0:02:24.5]} 18. Rfc1
{[%clk 0:01:50.8]} 18... Qxc2 {[%clk 0:02:23.5]} 19. Rxc2 {[%clk 0:01:51.7]}
19... Bd7 {[%clk 0:02:22.9]} 20. Ne5 {[%clk 0:01:48.4]} 20... Ba4 {[%clk
0:02:08.5]} 21. Rb2 {[%clk 0:01:47.5]} 21... Rac8 {[%clk 0:02:03]} 22. Ba5
{[%clk 0:01:45.9]} 22... b6 {[%clk 0:01:59.9]} 23. Be1 {[%clk 0:01:43.5]} 23...
Nd6 {[%clk 0:01:48.8]} 24. Ba6 {[%clk 0:01:21.5]} 24... Rc7 {[%clk 0:01:45.7]}
25. Bb4 {[%clk 0:01:17.7]} 25... Nc4 {[%clk 0:01:45.1]} 26. Re2 {[%clk
0:01:03.2]} 26... b5 {[%clk 0:01:28.9]} 27. Nxc4 {[%clk 0:00:42.3]} 27... bxc4
{[%clk 0:01:22]} 28. Bc5 {[%clk 0:00:25.1]} 28... Re6 {[%clk 0:01:17.2]} 29.
Bxc4 {[%clk 0:00:20.2]} 29... dxc4 {[%clk 0:01:16.4]} 30. f3 {[%clk 0:00:20.6]}
30... Nd7 {[%clk 0:01:13.9]} 31. Bb4 {[%clk 0:00:20]} 31... c3 {[%clk
0:01:13.4]} 32. Rc1 {[%clk 0:00:19.4]} 32... c2 {[%clk 0:01:13.2]} 33. d5 {[%clk
0:00:19.8]} 33... Rb6 {[%clk 0:01:11.2]} 34. e4 {[%clk 0:00:09.1]} 34... Ne5
{[%clk 0:01:10.8]} 0-1

[Event "*** Titled Tuesday Blitz"]
[Site "Chess.com"]
[Date "2021.02.02"]
[Round "2"]
[White "GCamachoMartinez"]
[Black "anon132639"]
[Result "0-1"]
[WhiteElo "2423"]
[BlackElo "2801"]
[TimeControl "180+1"]
[EndTime "10:18:44 PST"]
[Termination "anon132639 won by resignation"]

1. d4 {[%clk 0:03:00.9]} 1... Nf6 {[%clk 0:02:58.8]} 2. c4 {[%clk 0:03:00.7]}
2... b6 {[%clk 0:02:53.7]} 3. f3 {[%clk 0:02:56.6]} 3... Bb7 {[%clk 0:02:48]} 4.
e4 {[%clk 0:02:55.1]} 4... e5 {[%clk 0:02:33.4]} 5. dxe5 {[%clk 0:02:43.6]} 5...
Nh5 {[%clk 0:02:33.4]} 6. Ne2 {[%clk 0:02:18.9]} 6... Nc6 {[%clk 0:02:31]} 7.
Be3 {[%clk 0:02:05.2]} 7... Nxe5 {[%clk 0:02:29]} 8. Ng3 {[%clk 0:01:59.8]} 8...
Qh4 {[%clk 0:02:13.9]} 9. Bf2 {[%clk 0:01:57.9]} 9... Bb4+ {[%clk 0:02:14.6]}
10. Nd2 {[%clk 0:01:56.4]} 10... Nf4 {[%clk 0:02:06.9]} 11. Qc2 {[%clk
0:01:52.5]} 11... Bc5 {[%clk 0:02:02.5]} 12. Bxc5 {[%clk 0:01:44.3]} 12... bxc5
{[%clk 0:02:03.4]} 13. O-O-O {[%clk 0:01:43.5]} 13... g6 {[%clk 0:02:03.5]} 14.
Qc3 {[%clk 0:01:36.2]} 14... Qe7 {[%clk 0:01:59]} 15. Nb3 {[%clk 0:01:20.6]}
15... d6 {[%clk 0:01:55.9]} 16. Ne2 {[%clk 0:01:07.3]} 16... Nxe2+ {[%clk
0:01:53.5]} 17. Bxe2 {[%clk 0:01:08.2]} 17... O-O {[%clk 0:01:52.8]} 18. h4
{[%clk 0:01:05.3]} 18... f5 {[%clk 0:01:50.8]} 19. exf5 {[%clk 0:01:02.7]} 19...
Rxf5 {[%clk 0:01:49.6]} 20. Rde1 {[%clk 0:00:55.1]} 20... Qf6 {[%clk 0:01:43]}
21. Nd2 {[%clk 0:00:45.8]} 21... a5 {[%clk 0:01:38.8]} 22. Bd1 {[%clk
0:00:44.9]} 22... a4 {[%clk 0:01:38.8]} 23. Bc2 {[%clk 0:00:44.5]} 23... Rf4
{[%clk 0:01:37.3]} 24. Ne4 {[%clk 0:00:44.3]} 24... Bxe4 {[%clk 0:01:35]} 25.
Bxe4 {[%clk 0:00:45.2]} 25... Rb8 {[%clk 0:01:34.2]} 26. h5 {[%clk 0:00:44.5]}
26... g5 {[%clk 0:01:27.9]} 27. h6 {[%clk 0:00:38.2]} 27... a3 {[%clk
0:01:23.7]} 28. b3 {[%clk 0:00:36.2]} 28... Rf8 {[%clk 0:01:17.1]} 29. Kc2
{[%clk 0:00:31]} 29... g4 {[%clk 0:01:15]} 30. g3 {[%clk 0:00:19.9]} 30... Rxe4
{[%clk 0:01:08.2]} 31. Rxe4 {[%clk 0:00:18.6]} 31... gxf3 {[%clk 0:01:08.2]} 32.
Rf4 {[%clk 0:00:17.5]} 32... Qg6+ {[%clk 0:01:06.6]} 33. Kd2 {[%clk 0:00:12.8]}
33... Rxf4 {[%clk 0:01:05.6]} 34. gxf4 {[%clk 0:00:12.6]} 34... Qg2+ {[%clk
0:01:06.5]} 0-1

[Event "*** Titled Tuesday Blitz"]
[Site "Chess.com"]
[Date "2021.02.02"]
[Round "2"]
[White "The_filthy"]
[Black "Lysiak_Poltorak"]
[Result "0-1"]
[WhiteElo "2229"]
[BlackElo "2446"]
[TimeControl "180+1"]
[EndTime "10:18:48 PST"]
[Termination "Lysiak_Poltorak won by resignation"]

1. e4 {[%clk 0:03:00.9]} 1... c5 {[%clk 0:03:00.1]} 2. Nf3 {[%clk 0:03:00]} 2...
Nc6 {[%clk 0:03:00.5]} 3. d4 {[%clk 0:03:00.2]} 3... cxd4 {[%clk 0:03:01.4]} 4.
Nxd4 {[%clk 0:02:58.6]} 4... Nf6 {[%clk 0:03:02]} 5. Nc3 {[%clk 0:02:58.9]} 5...
e5 {[%clk 0:03:02.5]} 6. Ndb5 {[%clk 0:02:59]} 6... d6 {[%clk 0:03:03.2]} 7. Bg5
{[%clk 0:02:59.1]} 7... a6 {[%clk 0:03:03.8]} 8. Bxf6 {[%clk 0:02:59.1]} 8...
gxf6 {[%clk 0:03:03.8]} 9. Na3 {[%clk 0:02:59.2]} 9... b5 {[%clk 0:03:04.3]} 10.
Nd5 {[%clk 0:02:59.5]} 10... f5 {[%clk 0:03:04.9]} 11. Bd3 {[%clk 0:02:59.1]}
11... Be6 {[%clk 0:03:04.2]} 12. c4 {[%clk 0:02:58.8]} 12... Qa5+ {[%clk
0:02:58.5]} 13. Kf1 {[%clk 0:02:57.6]} 13... b4 {[%clk 0:02:52.9]} 14. Nc2
{[%clk 0:02:56.4]} 14... fxe4 {[%clk 0:02:40.7]} 15. Bxe4 {[%clk 0:02:56]} 15...
Bg7 {[%clk 0:02:40.6]} 16. Nf6+ {[%clk 0:02:33.1]} 16... Bxf6 {[%clk 0:02:40.4]}
17. Bxc6+ {[%clk 0:02:33.2]} 17... Ke7 {[%clk 0:02:40.5]} 18. Bxa8 {[%clk
0:02:32.9]} 18... Rxa8 {[%clk 0:02:41.4]} 19. Ne3 {[%clk 0:02:28.3]} 19... Rc8
{[%clk 0:02:31.3]} 20. b3 {[%clk 0:02:16.2]} 20... e4 {[%clk 0:02:12.5]} 21. Rb1
{[%clk 0:02:03.6]} 21... Qxa2 {[%clk 0:02:12.1]} 22. g4 {[%clk 0:01:50.5]} 22...
Bh4 {[%clk 0:02:00.3]} 23. Qc2 {[%clk 0:01:37.3]} 23... Qxc2 {[%clk 0:01:54.3]}
24. Nxc2 {[%clk 0:01:37.2]} 24... Bxg4 {[%clk 0:01:54.6]} 25. Ne3 {[%clk
0:01:30.1]} 25... Bh3+ {[%clk 0:01:31.8]} 26. Ke2 {[%clk 0:01:24.8]} 26... f5
{[%clk 0:01:31.8]} 27. Rhg1 {[%clk 0:01:20.4]} 27... Ke6 {[%clk 0:01:27.4]} 28.
Nd5 {[%clk 0:01:15.7]} 28... Bg4+ {[%clk 0:01:21]} 29. Ke3 {[%clk 0:01:13.2]}
29... Bg5+ {[%clk 0:01:15.8]} 30. Kd4 {[%clk 0:01:07.4]} 30... Bh6 {[%clk
0:00:42.7]} 31. h3 {[%clk 0:00:30.1]} 31... Be2 {[%clk 0:00:39.9]} 32. Nf4+
{[%clk 0:00:26.8]} 32... Bxf4 {[%clk 0:00:39.5]} 0-1

[Event "*** Titled Tuesday Blitz"]
[Site "Chess.com"]
[Date "2021.02.02"]
[Round "2"]
[White "Balla_Tamas"]
[Black "chessmadara"]
[Result "1-0"]
[WhiteElo "2496"]
[BlackElo "2140"]
[TimeControl "180+1"]
[EndTime "10:18:49 PST"]
[Termination "Balla_Tamas won by resignation"]

1. d4 {[%clk 0:03:00.9]} 1... Nf6 {[%clk 0:02:59.4]} 2. c4 {[%clk 0:02:59.8]}
2... g6 {[%clk 0:02:58.9]} 3. Nc3 {[%clk 0:02:59.4]} 3... d5 {[%clk 0:02:58.7]}
4. cxd5 {[%clk 0:02:58.5]} 4... Nxd5 {[%clk 0:02:59.6]} 5. e4 {[%clk 0:02:59.1]}
5... Nxc3 {[%clk 0:02:59.3]} 6. bxc3 {[%clk 0:03:00]} 6... Bg7 {[%clk
0:02:59.4]} 7. Be3 {[%clk 0:03:00.6]} 7... c5 {[%clk 0:02:57.9]} 8. h3 {[%clk
0:02:58.2]} 8... O-O {[%clk 0:02:56.6]} 9. Nf3 {[%clk 0:02:57.6]} 9... Nc6
{[%clk 0:02:55.3]} 10. Qd2 {[%clk 0:02:49.9]} 10... Qa5 {[%clk 0:02:45.1]} 11.
Bc4 {[%clk 0:02:28.3]} 11... b5 {[%clk 0:02:30.2]} 12. Bd5 {[%clk 0:02:23.7]}
12... Bb7 {[%clk 0:02:24.7]} 13. Rc1 {[%clk 0:02:18.6]} 13... e6 {[%clk
0:02:13.7]} 14. Bxc6 {[%clk 0:02:15]} 14... Bxc6 {[%clk 0:02:14.6]} 15. d5
{[%clk 0:02:00.3]} 15... Rfd8 {[%clk 0:01:51.4]} 16. c4 {[%clk 0:01:56.1]} 16...
Qa4 {[%clk 0:01:13.8]} 17. Qc2 {[%clk 0:01:49.9]} 17... exd5 {[%clk 0:00:58.2]}
18. cxd5 {[%clk 0:01:44.9]} 18... Bb7 {[%clk 0:00:49.2]} 19. Qxa4 {[%clk
0:01:43.8]} 19... bxa4 {[%clk 0:00:50.1]} 20. Rxc5 {[%clk 0:01:42.3]} 20... Re8
{[%clk 0:00:46.9]} 21. Nd2 {[%clk 0:01:34.6]} 21... f5 {[%clk 0:00:33.8]} 22. f3
{[%clk 0:01:34.4]} 22... Rad8 {[%clk 0:00:20.3]} 23. Kf2 {[%clk 0:01:12.3]}
23... fxe4 {[%clk 0:00:19.7]} 24. fxe4 {[%clk 0:01:08.3]} 24... Rf8+ {[%clk
0:00:19.1]} 25. Nf3 {[%clk 0:01:07.6]} 25... Rde8 {[%clk 0:00:16.8]} 26. Rc4
{[%clk 0:01:07.3]} 26... a3 {[%clk 0:00:16]} 27. Re1 {[%clk 0:01:04.7]} 27...
Ba6 {[%clk 0:00:14.5]} 28. Ra4 {[%clk 0:01:04.7]} 28... Bd3 {[%clk 0:00:14.5]}
29. Bc5 {[%clk 0:01:04]} 29... Rf7 {[%clk 0:00:12.7]} 30. Rxa3 {[%clk
0:01:02.7]} 30... Bxe4 {[%clk 0:00:12]} 31. Rae3 {[%clk 0:01:02.6]} 31... Bxf3
{[%clk 0:00:08.1]} 32. Rxe8+ {[%clk 0:01:01.7]} 1-0

[Event "*** Titled Tuesday Blitz"]
[Site "Chess.com"]
[Date "2021.02.02"]
[Round "2"]
[White "juancruzarias"]
[Black "AlexTriapishko"]
[Result "0-1"]
[WhiteElo "2579"]
[BlackElo "2916"]
[TimeControl "180+1"]
[EndTime "10:18:50 PST"]
[Termination "AlexTriapishko won by resignation"]

1. e4 {[%clk 0:03:00.9]} 1... e5 {[%clk 0:02:55.4]} 2. Nf3 {[%clk 0:03:00.8]}
2... Nc6 {[%clk 0:02:55.7]} 3. Nc3 {[%clk 0:03:00.8]} 3... Nf6 {[%clk 0:02:51]}
4. Bb5 {[%clk 0:03:00.2]} 4... Bc5 {[%clk 0:02:49.1]} 5. Nxe5 {[%clk 0:02:59.4]}
5... O-O {[%clk 0:02:29.5]} 6. Nd3 {[%clk 0:02:41.5]} 6... Bb6 {[%clk
0:02:15.3]} 7. O-O {[%clk 0:02:35.8]} 7... d5 {[%clk 0:01:39.8]} 8. e5 {[%clk
0:01:50.5]} 8... Ne4 {[%clk 0:01:15.5]} 9. Na4 {[%clk 0:01:20.5]} 9... Nd4
{[%clk 0:01:11.3]} 10. Nc3 {[%clk 0:00:58.9]} 10... Nxc3 {[%clk 0:01:01.1]} 11.
dxc3 {[%clk 0:00:56.1]} 11... Nxb5 {[%clk 0:01:02]} 12. a4 {[%clk 0:00:56.1]}
12... Nxc3 {[%clk 0:00:59.6]} 13. bxc3 {[%clk 0:00:57]} 13... a5 {[%clk
0:00:54.3]} 14. Qh5 {[%clk 0:00:50.7]} 14... Qd7 {[%clk 0:00:51.2]} 15. Ba3
{[%clk 0:00:46.7]} 15... Re8 {[%clk 0:00:50.8]} 16. Bc5 {[%clk 0:00:45.9]} 16...
Bxc5 {[%clk 0:00:49.3]} 17. Nxc5 {[%clk 0:00:46.8]} 17... Qc6 {[%clk 0:00:47.4]}
18. Nd3 {[%clk 0:00:34.2]} 18... Qxc3 {[%clk 0:00:47.4]} 19. Rfe1 {[%clk
0:00:28.9]} 19... Ra6 {[%clk 0:00:44.8]} 20. e6 {[%clk 0:00:23]} 20... Raxe6
{[%clk 0:00:43.3]} 21. Red1 {[%clk 0:00:15]} 21... c6 {[%clk 0:00:41.1]} 22. h3
{[%clk 0:00:15.1]} 22... Qxc2 {[%clk 0:00:37.9]} 23. Nf4 {[%clk 0:00:14.8]}
23... Re5 {[%clk 0:00:35.4]} 24. Qg4 {[%clk 0:00:15.1]} 24... Bxg4 {[%clk
0:00:34.3]} 0-1

[Event "*** Titled Tuesday Blitz"]
[Site "Chess.com"]
[Date "2021.02.02"]
[Round "2"]
[White "Taktikmonster"]
[Black "NiranjanNavalgund"]
[Result "0-1"]
[WhiteElo "2305"]
[BlackElo "2519"]
[TimeControl "180+1"]
[EndTime "10:18:50 PST"]
[Termination "NiranjanNavalgund won by checkmate"]

1. e4 {[%clk 0:03:00.9]} 1... e5 {[%clk 0:02:58.7]} 2. Nf3 {[%clk 0:03:01.1]}
2... Nc6 {[%clk 0:02:58.3]} 3. Bc4 {[%clk 0:03:01.6]} 3... Nf6 {[%clk 0:02:58]}
4. d3 {[%clk 0:03:01.7]} 4... h6 {[%clk 0:02:57]} 5. O-O {[%clk 0:03:01.2]} 5...
d6 {[%clk 0:02:54.7]} 6. c3 {[%clk 0:03:01]} 6... g5 {[%clk 0:02:53.5]} 7. d4
{[%clk 0:02:59.8]} 7... Bg7 {[%clk 0:02:43.5]} 8. dxe5 {[%clk 0:02:56.3]} 8...
Nxe5 {[%clk 0:02:43.7]} 9. Nxe5 {[%clk 0:02:54.6]} 9... dxe5 {[%clk 0:02:44.4]}
10. Qxd8+ {[%clk 0:02:55.4]} 10... Kxd8 {[%clk 0:02:44.8]} 11. Bxf7 {[%clk
0:02:56.3]} 11... Rf8 {[%clk 0:02:44.5]} 12. Bg6 {[%clk 0:02:49.9]} 12... Be6
{[%clk 0:02:39.2]} 13. Be3 {[%clk 0:02:38.4]} 13... b6 {[%clk 0:02:34.5]} 14. f3
{[%clk 0:02:34.4]} 14... Ke7 {[%clk 0:02:33.7]} 15. Nd2 {[%clk 0:02:33.2]} 15...
Rfd8 {[%clk 0:02:33.7]} 16. Rad1 {[%clk 0:02:06.7]} 16... a5 {[%clk 0:02:21.5]}
17. Bf5 {[%clk 0:01:22.5]} 17... Bxa2 {[%clk 0:01:54]} 18. c4 {[%clk 0:01:18.5]}
18... a4 {[%clk 0:01:52.9]} 19. Ra1 {[%clk 0:01:14]} 19... Bb3 {[%clk
0:01:48.9]} 20. Nxb3 {[%clk 0:01:10.9]} 20... axb3 {[%clk 0:01:49.6]} 21. Kf2
{[%clk 0:01:10.2]} 21... Kf7 {[%clk 0:01:41.9]} 22. Ke2 {[%clk 0:01:05.5]} 22...
Bf8 {[%clk 0:01:39.6]} 23. h4 {[%clk 0:00:59.4]} 23... gxh4 {[%clk 0:01:23.4]}
24. Rh1 {[%clk 0:00:57.1]} 24... Nh5 {[%clk 0:01:11.8]} 25. Rxa8 {[%clk
0:00:36.7]} 25... Ng3+ {[%clk 0:01:11.2]} 26. Ke1 {[%clk 0:00:32.5]} 26... Bb4+
{[%clk 0:01:10.6]} 27. Bd2 {[%clk 0:00:12.1]} 27... Bxd2+ {[%clk 0:01:06.6]} 28.
Kd1 {[%clk 0:00:12.6]} 28... Rxa8 {[%clk 0:01:03.6]} 29. Rxh4 {[%clk 0:00:12.3]}
29... Bg5 {[%clk 0:00:59.7]} 30. Rg4 {[%clk 0:00:09.1]} 30... Ra1# {[%clk
0:00:59.4]} 0-1